bitfinex/quotes_ETHUSD_20240715
["timestamp","ask_amount","ask_price","bid_price","bid_amount"]
[1721025501330,4.3e-06,3359.7,3359.6,14.33631693]
[1721025501503,4.3e-06,3359.7,3359.6,17.11770693]
[1721025501707,4.3e-06,3359.7,3359.6,17.01520693]
[1721025502110,0.32362223,3360.0,3359.9,12.4146]
[1721025502445,0.32362223,3360.0,3359.9,18.63710239]
[1721025502820,0.32362223,3360.0,3359.9,19.13687439]
[1721025502821,2.23e-06,3360.0,3359.9,19.13687439]
[1721025503021,2.23e-06,3360.0,3359.9,21.74187439]
[1721025503420,2.23e-06,3360.0,3359.9,21.63937439]
[1721025504368,3.31e-06,3360.4,3360.3,12.41332]
[1721025504657,3.31e-06,3360.4,3360.3,18.63520167]
[1721025505453,3.31e-06,3360.4,3360.3,14.25687167]
[1721025505624,3.31e-06,3360.4,3360.3,15.95687167]
[1721025506014,3.31e-06,3360.4,3360.3,14.25687167]
[1721025506219,3.31e-06,3360.4,3360.3,15.95687167]
[1721025506944,3.31e-06,3360.4,3360.3,13.70687167]
[1721025507310,3.31e-06,3360.4,3360.3,16.06317167]
[1721025507515,3.31e-06,3360.4,3360.3,19.29150167]
[1721025508231,1.47766775,3362.3,3361.8,2.67711]
[1721025508450,1.47766775,3362.1,3361.9,0.06631669]
[1721025508655,1.47766775,3362.1,3361.6,2.67728]
[1721025508656,0.1184883,3363.1,3362.6,1.7]
[1721025508872,0.1184883,3363.1,3363.0,2.67618]
[1721025509025,0.1184883,3363.1,3363.0,5.35236]
[1721025509231,12.18,3363.9,3363.0,5.35236]
[1721025509232,0.09236716,3364.4,3363.7,5.35124]
[1721025509543,0.09236716,3364.4,3363.7,11.02194903]
[1721025509953,0.09236716,3364.4,3363.7,14.24756903]
[1721025510118,0.09236716,3364.4,3363.7,16.54726903]
[1721025510447,2.605,3366.2,3363.7,16.54726903]
[1721025510448,0.08016775,3366.1,3365.7,0.30799098]
[1721025510656,0.08016775,3365.1,3364.1,2.67528]
[1721025510954,0.08016775,3365.1,3364.2,0.06524287]
[1721025511171,0.08016775,3365.1,3364.7,2.67481]
[1721025511331,1.3975,3365.4,3364.2,0.06524287]
[1721025511332,0.08016775,3364.5,3364.2,2.74040287]
[1721025511536,0.08016775,3364.5,3364.3,2.67514]
[1721025511776,0.08016775,3364.5,3363.4,2.67582]
[1721025511777,0.08016775,3364.1,3363.3,2.60662099]
[1721025512056,0.08016775,3363.8,3363.6,2.99]
[1721025512257,0.08016775,3363.4,3362.6,1.7]
[1721025512480,0.08016775,3363.4,3363.2,2.67601]
[1721025512758,1.3975,3363.4,3363.2,2.67601]
[1721025512956,1.3975,3363.4,3362.9,2.6762]
[1721025513162,1.3975,3363.4,3363.0,2.67617]
[1721025513460,1.3975,3363.4,3363.2,2.67598]
[1721025513835,1.3975,3363.4,3363.2,2.67602]
[1721025514630,1.3975,3363.4,3363.1,2.67607]
[1721025514856,0.08016775,3363.3,3363.0,2.67615]
[1721025515051,0.08016775,3363.3,3363.1,3.0]
[1721025515232,0.08016775,3363.1,3362.7,2.67639]
[1721025515556,0.08016775,3363.1,3362.5,2.67654]
[1721025515766,2.4241,3363.2,3362.6,2.67647]
[1721025515767,0.08016775,3362.9,3362.6,2.67647]
[1721025515922,1.3975,3362.8,3362.4,5.66665]
[1721025516130,0.08016775,3362.6,3362.4,5.66663]
[1721025516351,1.47766775,3362.8,3362.6,2.67647]
[1721025516835,1.3975,3363.0,3362.6,2.67647]
[1721025517038,2.50426775,3363.2,3362.6,2.67647]
[1721025517039,3.90176775,3363.2,3362.6,2.67647]
[1721025517238,2.50426775,3363.2,3362.9,2.67626]
[1721025517872,2.4241,3363.2,3363.1,2.6761]
[1721025518159,1.3975,3363.1,3362.9,2.6762]
[1721025518469,1.3975,3363.1,3362.7,2.73587651]
[1721025518771,1.3975,3363.1,3362.9,2.67621]
[1721025518970,1.3975,3363.1,3362.7,2.67641]
[1721025519167,0.08016775,3362.9,3362.5,2.67657]
[1721025519373,0.08016775,3362.6,3362.4,2.99]
[1721025519730,0.08016775,3362.6,3361.9,2.67705]
[1721025519731,0.08016775,3362.3,3361.9,2.67705]
[1721025519927,2.67586,3363.4,3361.6,2.67728]
[1721025519928,0.08016775,3362.1,3361.7,2.6772]
[1721025520274,1.47766775,3362.1,3361.6,2.67721]
[1721025520567,1.47766775,3362.1,3361.8,0.06366123]
[1721025520568,0.08016775,3362.1,3361.8,0.06366123]
[1721025520771,0.08016775,3361.9,3361.7,0.06369493]
[1721025520929,1.3975,3361.8,3361.4,2.67743]
[1721025521281,1.3975,3361.8,3361.3,2.99]
[1721025521282,0.08016775,3361.6,3361.3,2.99]
[1721025521432,0.08016775,3361.4,3361.3,2.99]
[1721025522065,0.08016775,3361.4,3360.9,2.67785]
[1721025522244,1.3975,3361.2,3360.9,2.67785]
[1721025522846,1.3975,3361.2,3360.8,2.67786]
[1721025523044,1.3975,3361.2,3360.6,2.67805]
[1721025523378,1.3975,3361.2,3360.9,2.67785]
[1721025523670,0.08016775,3361.0,3360.5,0.31115965]
[1721025523904,1.47766775,3361.0,3360.5,2.67814]
[1721025524103,1.3975,3360.8,3360.5,2.67814]
[1721025525314,0.08016775,3360.4,3360.3,2.99]
[1721025526371,1.47766775,3360.0,3359.6,2.67888]
[1721025526988,0.04569152,3360.3,3359.4,2.67901]
[1721025526989,1.47766775,3359.8,3359.4,2.67901]
[1721025527190,0.08016775,3359.4,3359.0,2.99]
[1721025527575,0.08016775,3359.4,3359.1,2.67925]
[1721025528272,0.08016775,3359.2,3359.0,2.99]
[1721025528898,0.08016775,3359.2,3359.0,1.527992]
[1721025529389,0.08016775,3359.2,3358.8,2.67951]
[1721025529604,0.08016775,3359.2,3358.5,2.67976]
[1721025529605,0.08016775,3359.0,3358.5,2.73929691]
[1721025530114,0.08016775,3359.0,3358.5,2.99114342]
[1721025530313,0.08016775,3359.0,3358.7,2.67954]
[1721025530476,0.08016775,3359.0,3358.8,3.0]
[1721025530911,0.08016775,3359.0,3358.5,2.99114342]
[1721025531208,0.08016775,3358.8,3358.2,5.67993]
[1721025531368,0.08016775,3358.8,3358.0,2.68015]
[1721025531369,0.08016775,3358.6,3358.0,2.68015]
[1721025531573,1.47766775,3358.6,3358.0,2.68015]
[1721025532171,0.08016775,3358.4,3358.1,2.68008]
[1721025532525,0.08016775,3358.4,3357.9,4.208212]
[1721025532526,2.3801,3358.3,3357.9,4.208212]
[1721025532869,1.3975,3358.8,3358.5,2.67974]
[1721025533070,2.67888,3359.7,3358.3,2.67991]
[1721025533266,1.3975,3358.6,3358.2,0.31141674]
[1721025533469,2.67914,3359.3,3358.1,2.68007]
[1721025533683,2.72469152,3359.5,3358.1,2.68007]
[1721025533911,2.72469152,3359.5,3357.9,4.208222]
[1721025533912,1.3975,3359.5,3358.2,2.68]
[1721025534415,2.72474152,3359.4,3358.3,0.06199244]
[1721025534702,0.62860925,3359.3,3358.3,0.06199244]
[1721025535067,1.3975,3358.8,3358.3,2.74188244]
[1721025535525,1.3975,3358.6,3358.3,0.06199244]
[1721025535808,3.6922,3358.4,3358.3,0.06199244]
[1721025536004,3.6922,3358.4,3357.9,1.527992]
[1721025536214,2.2947,3359.1,3358.5,2.67975]
[1721025536397,1.3975,3358.8,3358.2,2.67992]
[1721025536720,1.3975,3358.8,3358.0,2.68014]
[1721025536872,1.3975,3358.6,3358.3,0.0620223]
[1721025537075,1.3975,3358.6,3357.9,3.227992]
[1721025537269,1.3975,3358.6,3358.0,0.06212362]
[1721025538215,2.2947,3359.1,3358.0,0.06212362]
[1721025538403,1.3975,3358.7,3358.0,0.06212362]
[1721025538599,1.3975,3358.4,3358.0,0.06212362]
[1721025538796,1.3975,3358.2,3358.0,0.06212362]
[1721025539001,1.3975,3358.4,3357.9,1.527992]
[1721025539507,3.6676,3358.1,3358.0,0.06234818]
[1721025540020,3.6676,3358.1,3357.5,0.31143905]
[1721025540322,3.6676,3358.1,3357.3,2.68071]
[1721025540620,1.3975,3358.5,3358.0,2.68016]
[1721025541119,1.3975,3358.5,3358.1,0.0623144]
[1721025541614,1.3975,3358.5,3358.0,2.68016]
[1721025541918,2.2582,3358.7,3358.4,2.67982]
[1721025542111,2.2582,3358.7,3358.1,2.7423344]
[1721025542112,1.3975,3358.6,3358.1,2.7423344]
[1721025542311,1.3975,3358.6,3358.5,0.06217932]
[1721025542638,1.3975,3358.6,3358.2,2.67998]
[1721025542772,1.3975,3358.6,3358.5,0.06217932]
[1721025542978,1.3975,3358.6,3358.2,2.67998]
[1721025543212,1.3975,3358.6,3358.5,0.06217932]
[1721025543416,1.3975,3358.6,3358.2,2.67998]
[1721025543894,2.2582,3358.7,3358.5,2.67976]
[1721025544321,1.3975,3359.0,3358.6,0.06214556]
[1721025545586,1.3975,3358.8,3358.6,0.06214556]
[1721025545789,1.3975,3358.8,3358.1,2.68007]
[1721025546129,1.3975,3358.6,3358.2,2.74225063]
[1721025546619,1.3975,3358.6,3358.2,0.06228063]
[1721025546922,1.3975,3358.6,3358.0,2.6801]
[1721025547236,1.3975,3358.4,3358.3,0.06224686]
[1721025547429,2.6795,3358.9,3357.5,2.68055]
[1721025547734,1.3975,3358.2,3357.6,0.0624833]
[1721025548434,2.2859,3358.9,3357.7,0.05956077]
[1721025548435,1.3975,3358.3,3357.7,0.05956077]
[1721025548733,1.3975,3358.6,3357.8,4.44265578]
[1721025548978,1.3975,3358.4,3357.8,0.06240578]
[1721025549416,1.3975,3358.4,3357.8,0.05955585]
[1721025549621,1.3975,3358.4,3357.4,1.7]
[1721025549622,1.3975,3358.4,3357.9,2.68024]
[1721025549848,1.3975,3358.4,3357.9,0.06241468]
[1721025550165,1.3975,3358.4,3357.9,2.68024]
[1721025550465,1.3975,3358.7,3358.0,0.0623809]
[1721025550820,1.3975,3358.2,3358.0,0.0623809]
[1721025551218,2.2859,3358.9,3358.1,1.7]
[1721025551419,2.2859,3358.9,3358.2,0.05954502]
[1721025551655,2.2859,3358.9,3358.5,2.67974]
[1721025552166,1.3975,3358.8,3358.6,0.06217686]
[1721025552383,2.2859,3358.9,3358.6,0.06217686]
[1721025553256,2.2859,3358.9,3358.1,4.38001]
[1721025553769,2.2859,3358.9,3358.2,2.74225079]
[1721025553919,1.3975,3358.5,3358.2,0.06225079]
[1721025554363,1.3975,3358.5,3357.8,2.68025]
[1721025554562,1.3975,3358.5,3358.3,0.06221701]
[1721025554727,1.3975,3358.5,3357.5,5.68054]
[1721025554924,1.3975,3358.4,3357.7,2.68039]
[1721025555126,1.3975,3358.2,3357.6,3.0]
[1721025555461,1.3975,3358.2,3357.7,2.68039]
[1721025555827,1.3975,3358.2,3357.8,2.68032]
[1721025556032,1.3975,3358.0,3357.6,2.68044]
[1721025556360,1.3975,3358.0,3357.4,0.3114656]
[1721025556663,1.3975,3358.0,3357.4,2.9920456]
[1721025556960,2.4923,3358.1,3357.2,2.68079]
[1721025556961,1.3975,3357.6,3357.2,2.68079]
[1721025557263,1.3975,3357.6,3357.3,2.68071]
[1721025557448,1.3975,3357.8,3357.4,2.68063]
[1721025557763,2.4923,3358.1,3357.2,0.3114974]
[1721025557764,1.3975,3357.6,3357.2,0.3114974]
[1721025558123,1.3975,3357.6,3357.1,1.7]
[1721025559368,1.3975,3357.8,3357.1,1.7]
[1721025559667,2.4923,3358.1,3357.1,1.7]
[1721025559668,1.3975,3357.6,3357.1,1.7]
[1721025560158,1.3975,3357.4,3356.9,2.68104]
[1721025560526,1.3975,3357.4,3356.9,2.74061139]
[1721025560726,1.3975,3357.4,3357.0,2.68096]
[1721025560925,2.4923,3358.1,3357.0,2.68096]
[1721025560926,1.3975,3357.6,3357.0,2.68096]
[1721025561127,1.3975,3357.4,3357.0,2.68096]
[1721025561528,2.4913,3357.3,3356.8,0.31151083]
[1721025561958,1.3975,3357.2,3356.8,0.31151083]
[1721025562271,1.3975,3357.2,3356.6,2.68128]
[1721025562630,1.3975,3356.9,3356.4,2.68142]
[1721025562944,1.3975,3356.9,3356.2,2.6816]
[1721025563146,2.4913,3357.3,3355.3,8.4497]
[1721025563147,1.3975,3356.7,3356.4,0.31153895]
[1721025563334,0.24913,3357.2,3356.4,0.31153895]
[1721025563726,1.3975,3356.8,3356.4,0.31153895]
[1721025563922,1.3975,3356.8,3356.5,0.06114979]
[1721025564362,3.8888,3357.3,3356.5,0.06114979]
[1721025564671,1.3975,3356.8,3356.5,0.06114979]
[1721025564965,1.3975,3356.6,3356.5,0.06114979]
[1721025565339,1.3975,3356.6,3355.9,4.38184]
[1721025565657,2.4797,3356.2,3355.5,2.6821]
[1721025566165,1.3975,3355.8,3355.5,0.31164593]
[1721025566325,2.4797,3356.2,3355.5,0.31164593]
[1721025566768,2.4797,3356.2,3355.6,0.05959543]
[1721025566965,2.4797,3356.2,3355.6,2.68207]
[1721025567167,2.4797,3356.2,3355.6,2.74166548]
[1721025567325,2.4797,3356.2,3355.6,0.05959548]
[1721025567523,2.4797,3356.2,3355.6,2.68207]
[1721025567779,2.401,3356.7,3355.8,1.7]
[1721025567961,1.3975,3356.6,3355.8,1.75958727]
[1721025568295,1.3975,3356.6,3356.1,2.68161]
[1721025568611,1.3975,3356.6,3356.2,2.68159]
[1721025569277,2.3671,3357.3,3356.3,0.05958729]
[1721025569443,2.3671,3357.3,3356.5,2.6813]
[1721025569643,2.3671,3357.3,3356.8,2.68106]
[1721025569885,1.3975,3357.1,3356.6,4.44084496]
[1721025570088,1.3975,3357.1,3356.2,1.7]
[1721025570294,1.3975,3356.6,3356.2,3.0]
[1721025570594,1.3975,3356.8,3356.2,5.68159]
[1721025570747,2.3671,3357.3,3356.3,2.7410828]
[1721025570950,1.3975,3356.6,3355.9,2.68177]
[1721025571289,2.3186,3356.5,3355.6,5.68204]
[1721025571592,3.7161,3356.5,3355.9,1.7]
[1721025571756,1.3975,3356.4,3356.2,2.68158]
[1721025571955,1.3975,3356.4,3355.9,4.38181]
[1721025571956,1.3975,3356.4,3355.9,2.68181]
[1721025572174,2.3186,3356.5,3355.5,2.01164593]
[1721025572175,1.3975,3356.2,3355.7,2.68194]
[1721025572386,0.77572149,3356.2,3355.8,3.0]
[1721025572571,0.77572149,3356.2,3355.5,2.99378593]
[1721025572572,0.77572149,3356.0,3355.5,2.99378593]
[1721025572893,0.77572149,3356.0,3355.5,2.99379593]
[1721025573390,0.77572149,3355.8,3355.5,2.99379593]
[1721025573950,0.77572149,3356.0,3355.5,2.99379593]
[1721025574189,0.77572149,3355.8,3355.6,2.68207]
[1721025574486,0.77572149,3356.1,3355.6,2.68207]
[1721025575287,0.77572149,3356.1,3355.8,2.68185]
[1721025575485,2.3186,3356.5,3355.6,2.68207]
[1721025575693,0.85425284,3356.4,3355.6,2.68207]
[1721025575853,2.3186,3356.5,3355.6,2.68207]
[1721025576183,0.77572149,3356.0,3355.6,2.68207]
[1721025576386,0.77572149,3356.0,3355.5,0.31164593]
[1721025576880,2.36429152,3356.5,3355.5,0.31164593]
[1721025577263,3.04232149,3355.6,3355.5,0.31164593]
[1721025577803,3.04232149,3355.6,3354.8,2.6827]
[1721025577804,3.04232149,3355.6,3354.9,3.0]
[1721025578083,3.04232149,3355.6,3355.1,0.31170243]
[1721025578084,0.77572149,3355.4,3355.1,0.31170243]
[1721025578273,3.04232149,3355.6,3355.1,0.31170243]
[1721025578757,0.77572149,3355.4,3355.1,0.31170243]
[1721025579077,3.04232149,3355.6,3355.1,0.31170243]
[1721025579262,0.77572149,3355.2,3355.1,0.31170243]
[1721025579851,0.77572149,3355.2,3355.1,0.36900901]
[1721025580056,0.77572149,3355.2,3355.1,0.31170243]
[1721025580358,0.77572149,3355.2,3355.1,0.05730658]
[1721025580552,0.77572149,3355.2,3354.4,2.68303]
[1721025580780,0.77572149,3355.2,3355.1,0.05730658]
[1721025581092,0.77572149,3355.0,3354.6,2.99453118]
[1721025581388,0.77572149,3355.0,3354.7,2.68278]
[1721025581957,0.77572149,3355.0,3354.6,0.31171118]
[1721025582270,0.77572149,3355.0,3354.6,2.99457118]
[1721025582591,0.77572149,3355.2,3354.8,2.68271]
[1721025582749,0.77572149,3355.4,3354.8,2.68271]
[1721025582955,0.77572149,3355.2,3354.8,2.68271]
[1721025583155,0.77572149,3355.4,3354.8,2.68271]
[1721025583582,3.04232149,3355.6,3354.8,2.68271]
[1721025583897,2.2666,3355.6,3355.3,2.68231]
[1721025584097,6.99964985,3356.0,3355.4,2.68223]
[1721025584396,0.77572149,3356.0,3355.5,2.68213]
[1721025584591,0.77572149,3356.0,3355.6,2.68202]
[1721025585156,2.4238,3356.1,3355.4,2.74183411]
[1721025585157,0.77572149,3355.8,3355.4,2.68223]
[1721025585381,0.77572149,3355.8,3355.5,2.68216]
[1721025585783,0.77572149,3355.8,3355.0,2.68255]
[1721025585962,0.77572149,3355.4,3354.9,2.68258]
[1721025586160,0.77572149,3355.6,3354.9,2.68258]
[1721025586375,0.77572149,3355.2,3354.9,2.68258]
[1721025586585,0.77572149,3355.0,3354.7,2.68275]
[1721025586787,0.77572149,3355.0,3354.6,0.31171118]
[1721025587090,0.77572149,3355.0,3354.6,2.99457118]
[1721025587290,0.77572149,3355.0,3354.7,2.68279]
[1721025588099,0.77572149,3355.0,3354.6,0.31171118]
[1721025588270,0.77572149,3354.8,3354.6,0.31171118]
[1721025588470,0.77572149,3354.8,3354.6,2.99457118]
[1721025589568,0.77572149,3355.0,3354.6,0.31171118]
[1721025589767,0.77572149,3354.7,3354.3,2.68312]
[1721025590373,0.77572149,3354.6,3354.3,2.68312]
[1721025591505,0.77572149,3354.4,3354.3,2.68312]
[1721025591680,0.77572149,3354.6,3354.3,2.68312]
[1721025591881,2.3409,3355.1,3354.3,2.68312]
[1721025592080,2.3409,3355.1,3354.6,2.68287]
[1721025592403,0.77572149,3354.8,3354.6,2.68287]
[1721025592584,0.77572149,3354.8,3354.4,0.31178804]
[1721025592790,0.77572149,3354.6,3354.4,0.31178804]
[1721025594203,2.38659152,3355.1,3354.4,0.31178804]
[1721025594204,2.3409,3355.1,3354.4,0.31178804]
[1721025594501,0.77572149,3354.9,3354.4,0.31178804]
[1721025594870,0.77572149,3354.9,3354.4,2.99481804]
[1721025595090,0.77572149,3354.7,3354.4,2.99481804]
[1721025595294,0.77572149,3354.7,3354.5,0.05754509]
[1721025598584,0.77572149,3354.7,3354.6,2.68288]
[1721025598907,0.77572149,3354.7,3354.6,2.74039124]
[1721025599501,0.77572149,3354.7,3354.6,0.05751124]
[1721025600192,0.77572149,3354.7,3354.4,0.31178804]
[1721025600396,0.77572149,3354.5,3354.4,0.31178804]
[1721025600564,0.77572149,3354.7,3354.4,0.31178804]
[1721025601390,0.77572149,3354.7,3354.6,2.68288]
[1721025602212,2.3409,3355.1,3354.7,2.68279]
[1721025602370,0.77572149,3354.9,3354.7,2.68279]
[1721025602988,0.77572149,3354.9,3354.5,2.68295]
[1721025603208,0.77572149,3354.7,3354.5,2.68295]
[1721025603709,0.77572149,3354.7,3354.4,0.31178804]
[1721025603892,0.77572149,3354.8,3354.4,2.99480804]
[1721025605205,0.77572149,3354.6,3354.4,0.31178804]
[1721025605790,0.04569152,3354.9,3354.4,0.31178804]
[1721025606322,0.77572149,3354.8,3354.4,0.31178804]
[1721025606922,0.04569152,3354.7,3354.4,0.31178804]
[1721025607112,3.09902149,3354.5,3354.4,0.31178804]
[1721025607520,2.3233,3354.5,3354.4,0.31178804]
[1721025608218,2.3482,3355.0,3354.4,0.31178804]
[1721025608427,0.77572149,3354.9,3354.4,0.31178804]
[1721025608595,0.77572149,3354.6,3354.4,0.31178804]
[1721025608797,0.82141301,3354.6,3354.4,0.31178804]
[1721025608988,0.82141301,3354.6,3354.5,0.05786991]
[1721025609185,0.77572149,3354.6,3354.4,0.31178804]
[1721025609397,0.77572149,3354.6,3354.5,0.05786991]
[1721025609722,0.77572149,3354.6,3353.6,1.7]
[1721025609723,2.264,3353.7,3353.0,0.1184883]
[1721025609886,0.2264,3353.6,3353.0,0.1184883]
[1721025610087,0.2264,3353.6,3353.0,2.7525883]
[1721025610310,3.03972149,3353.7,3353.2,2.68394]
[1721025610623,0.77572149,3353.5,3353.3,0.05263829]
[1721025610931,3.03972149,3353.7,3353.0,2.7526083]
[1721025611086,0.04569152,3353.6,3353.4,0.05260442]
[1721025611288,2.4876,3353.1,3353.0,0.0684883]
[1721025611607,2.81393215,3353.1,3353.0,0.0684883]
[1721025611918,3.58965364,3353.1,3353.0,0.0684883]
[1721025614625,2.81393215,3353.1,3353.0,0.0684883]
[1721025614784,0.77572149,3353.6,3353.0,0.0684883]
[1721025614986,0.77572149,3353.6,3353.0,2.7526283]
[1721025615423,0.77572149,3353.4,3353.0,2.7526283]
[1721025616549,1.08058364,3353.4,3353.0,2.7526283]
[1721025616749,1.08058364,3353.4,3353.0,0.0684883]
[1721025616750,0.77572149,3353.2,3353.0,0.0684883]
[1721025617083,0.82141301,3353.2,3353.0,0.0684883]
[1721025617279,0.77572149,3353.2,3353.0,0.0684883]
[1721025619905,0.77572149,3353.5,3353.2,2.68397]
[1721025620230,0.77572149,3353.2,3353.1,2.68408]
[1721025620612,0.77572149,3353.2,3353.0,0.0684883]
[1721025621710,0.77572149,3353.4,3353.0,2.7526383]
[1721025623138,0.77572149,3353.4,3353.3,2.68392]
[1721025624628,0.77572149,3353.4,3353.1,2.68401]
[1721025624832,0.77572149,3353.2,3353.1,2.68401]
[1721025625224,0.77572149,3353.4,3353.2,2.684]
[1721025625432,0.77572149,3353.4,3353.1,0.05041916]
[1721025625746,0.77572149,3353.1,3353.0,0.0684883]
[1721025626322,3.07222149,3353.1,3353.0,0.0684883]
[1721025629665,0.77572149,3353.1,3353.0,0.0684883]
[1721025630218,0.77572149,3353.3,3353.1,2.68402]
[1721025630431,0.77572149,3353.6,3353.1,5.36804]
[1721025631027,6.22392836,3354.3,3353.8,2.68352]
[1721025631237,12.95572149,3354.4,3353.8,2.68352]
[1721025631238,0.77572149,3354.4,3354.1,2.68325]
[1721025631438,0.77572149,3354.4,3354.3,2.68312]
[1721025631652,9.48794985,3355.0,3354.3,2.68312]
[1721025631960,9.48794985,3355.0,3354.7,2.68278]
[1721025631961,0.77572149,3355.0,3354.7,2.68278]
[1721025632163,6.22392836,3355.6,3354.9,2.68264]
[1721025632462,6.22392836,3355.6,3355.0,2.76305215]
[1721025633266,0.77572149,3355.3,3355.0,2.76305215]
[1721025633559,0.77572149,3355.3,3355.0,0.08053215]
[1721025633961,0.77572149,3355.1,3355.0,0.08053215]
[1721025634463,0.04569152,3355.2,3354.4,2.68303]
[1721025634464,0.77572149,3354.8,3354.4,2.68303]
[1721025634624,0.77572149,3354.8,3354.5,2.68295]
[1721025634828,0.77572149,3354.8,3354.7,2.6828]
[1721025636038,0.77572149,3355.0,3354.8,2.68271]
[1721025637060,0.77572149,3355.0,3354.9,2.68264]
[1721025637264,0.77572149,3355.2,3354.9,2.68264]
[1721025637562,0.77572149,3355.2,3355.0,2.68252]
[1721025638480,0.77572149,3355.6,3355.3,2.68232]
[1721025638629,0.77572149,3355.6,3355.5,2.68216]
[1721025638829,6.22392836,3356.1,3354.5,3.0]
[1721025638830,0.04569152,3356.0,3354.5,3.0]
[1721025639030,0.77572149,3355.5,3354.6,2.68281]
[1721025639383,2.4145,3355.3,3354.7,2.68274]
[1721025639532,0.04569152,3355.2,3354.7,2.68274]
[1721025639724,0.77572149,3355.0,3354.7,2.68274]
[1721025639924,3.19022149,3355.3,3354.7,2.68274]
[1721025640152,3.19022149,3355.3,3354.9,2.68261]
[1721025640449,0.77572149,3355.3,3355.0,2.76021223]
[1721025640849,0.77572149,3355.3,3355.0,0.07768223]
[1721025641059,0.77572149,3355.0,3354.8,2.68272]
[1721025641265,0.82141301,3355.2,3355.1,0.07764748]
[1721025641437,0.77572149,3355.2,3354.8,2.68272]
[1721025641639,0.77572149,3355.2,3355.1,0.07764748]
[1721025641959,0.77572149,3355.0,3354.9,2.68262]
[1721025642136,0.77572149,3355.2,3354.9,2.68262]
[1721025642342,0.77572149,3355.2,3354.6,2.68287]
[1721025642546,0.77572149,3355.2,3355.0,2.68256]
[1721025642860,0.77572149,3355.2,3355.1,2.68248]
[1721025643373,2.4503,3355.8,3355.3,2.68232]
[1721025643374,0.77572149,3355.4,3355.3,2.68232]
[1721025643572,0.77572149,3355.6,3355.4,2.6822]
[1721025644178,0.77572149,3355.6,3355.0,0.05960577]
[1721025644179,0.77572149,3355.8,3355.5,2.68216]
[1721025644488,6.22392836,3356.2,3355.8,2.68189]
[1721025644788,6.99964985,3356.2,3356.0,2.68176]
[1721025645292,0.77572149,3356.0,3355.8,2.68189]
[1721025645884,0.77572149,3356.2,3355.4,0.05959938]
[1721025646091,0.77572149,3356.2,3356.1,2.68168]
[1721025646788,0.77572149,3356.6,3356.4,2.68141]
[1721025647485,0.77572149,3356.6,3356.5,2.68136]
[1721025647683,0.77572149,3356.6,3356.4,2.68143]
[1721025647875,0.77572149,3356.6,3355.6,3.0]
[1721025647876,0.77572149,3356.4,3355.6,3.0]
[1721025648079,0.77572149,3356.2,3355.8,2.6819]
[1721025648684,0.77572149,3356.2,3355.1,2.68242]
[1721025648685,0.77572149,3355.6,3354.9,2.68262]
[1721025648882,2.33389152,3356.1,3355.1,2.68242]
[1721025648883,0.77572149,3355.7,3355.1,2.68242]
[1721025649192,0.77572149,3355.7,3355.2,2.68239]
[1721025649376,0.77572149,3355.7,3355.3,2.68229]
[1721025649580,0.77572149,3355.9,3355.4,2.68224]
[1721025649782,0.77572149,3355.9,3355.1,2.68247]
[1721025650093,0.04569152,3356.2,3355.0,1.527992]
[1721025650289,0.77572149,3355.7,3355.0,1.527992]
[1721025650452,0.77572149,3355.7,3355.2,2.68234]
[1721025650663,0.77572149,3355.7,3355.3,2.68231]
[1721025650992,0.77572149,3355.5,3355.0,2.68255]
[1721025651185,0.77572149,3355.5,3354.6,3.0]
[1721025651186,0.77572149,3355.5,3354.9,2.68259]
[1721025651390,0.77572149,3355.3,3354.6,3.0]
[1721025651692,0.77572149,3355.3,3354.3,5.00518]
[1721025651693,0.77572149,3355.3,3354.9,2.6826]
[1721025651903,0.77572149,3355.3,3354.7,2.68279]
[1721025651904,0.77572149,3355.3,3355.0,2.68254]
[1721025652056,0.77572149,3355.6,3354.8,1.7]
[1721025652403,0.77572149,3355.6,3354.8,1.75960439]
[1721025652692,2.68104,3356.9,3354.8,1.75960439]
[1721025652693,0.77572149,3356.0,3355.9,2.68184]
[1721025652901,0.77572149,3356.2,3355.8,2.68189]
[1721025653098,0.77572149,3356.0,3355.8,2.68189]
[1721025653394,0.77572149,3355.8,3355.4,2.68217]
[1721025653577,2.4973,3356.6,3355.1,3.0]
[1721025653578,0.77572149,3356.0,3355.1,3.0]
[1721025653780,0.77572149,3356.0,3355.6,2.68202]
[1721025653990,0.77572149,3355.8,3355.6,2.68202]
[1721025654275,2.4973,3356.6,3355.4,2.74181131]
[1721025654276,0.77572149,3356.2,3355.4,2.74181131]
[1721025654480,0.77572149,3356.5,3356.1,2.68168]
[1721025654706,0.77572149,3356.7,3356.5,2.68134]
[1721025654994,0.77572149,3356.7,3356.0,0.05958739]
[1721025654995,0.77572149,3357.1,3356.8,2.68106]
[1721025655198,1.63182433,3357.1,3356.8,2.68106]
[1721025655354,0.77572149,3357.1,3356.9,0.0768368]
[1721025655555,0.77572149,3357.1,3356.8,2.68106]
[1721025655800,0.77572149,3357.1,3356.9,0.0768368]
[1721025655959,0.77572149,3357.1,3356.8,2.68106]
[1721025656283,0.77572149,3356.9,3356.8,2.68106]
[1721025658464,0.77572149,3356.9,3356.2,1.7]
[1721025658698,0.77572149,3356.9,3356.7,2.68115]
[1721025659303,0.77572149,3356.7,3356.2,1.7]
[1721025659863,6.99964985,3357.4,3357.0,2.68096]
[1721025660090,6.22392836,3358.6,3357.5,1.7]
[1721025660402,0.77572149,3358.6,3358.1,2.68001]
[1721025660709,0.77572149,3358.6,3358.0,2.68012]
[1721025660874,0.77572149,3358.1,3357.8,2.68026]
[1721025661079,0.77572149,3358.1,3357.7,3.0]
[1721025661295,0.77572149,3358.1,3357.6,3.0]
[1721025661498,0.77572149,3358.1,3357.8,2.6803]
[1721025662005,0.77572149,3358.1,3357.6,2.68044]
[1721025662203,0.77572149,3358.1,3357.7,2.68039]
[1721025662512,0.77572149,3358.1,3358.0,2.68016]
[1721025662690,0.77572149,3358.1,3357.7,2.68037]
[1721025662865,0.77572149,3357.9,3357.7,2.68037]
[1721025663071,0.77572149,3357.9,3357.8,2.68032]
[1721025663301,0.77572149,3357.9,3357.6,2.68048]
[1721025663677,0.77572149,3357.9,3357.4,2.68063]
[1721025663678,0.77572149,3357.9,3357.7,2.6804]
[1721025666903,0.77572149,3358.1,3357.8,2.68032]
[1721025667217,0.77572149,3358.1,3357.5,2.68056]